Cogmind - Beta 14 @@@ ROGUE MODE // 2024.08.22 @ 15:26:36 Player: celerysam Result: Destroyed by P-80 Master with Gamma Rifle Performance ------------- Evolutions (7) 3500 Regions Visited (12) 2400 Robots Destroyed (30) 150 Value Destroyed (1050) 1050 Prototype IDs (8) 160 Alien Tech Used (1) 200 Bonus (760) 760 TOTAL SCORE: 8220 Bonus ------- High Alert Combat Kills 16 Follower Combat Kills 244 Entered DSFs 500 Cogmind --------- Core Integrity 0/1300 Matter 144/300 Energy 92/100 System Corruption 18% Temperature Cool (1) Movement Flying (45) Location -3/Quarantine Parts ------- > --- POWER (3) -------- (None) > --- PROPULSION (7) --- Impulse Thruster Array > --- UTILITY (7) ------ Hacking Suite System Shield > --- WEAPON (4) ------- (None) > --- INVENTORY (5) ---- Combat Antigrav System Improved Cooling System Antimissile System Phase Gun Peak State ------------ > --- POWER ------------ Micro Antimatter Reactor > --- PROPULSION ------- Centrium Wheel Nuclear Pulse Thruster Impulse Thruster Impulse Thruster Array Impulse Thruster Array > --- UTILITY ---------- Improved Cooling System Structural Scanner Machine Analyzer Hacking Suite Hacking Suite System Shield Long-range Tractor Beam > --- WEAPON ----------- Sigix Terminator Advanced Remote Datajack Spear > --- INVENTORY -------- Biometal Leg Improved Cooling System Antimissile System Dispersion Rifle Precision Assault Rifle [Rating: 125] Favorites ----------- Power Improved Ion Engine Engine Improved Ion Engine Power Core Light Nuclear Core Reactor Light Antimatter Reactor Propulsion Xenon Bombardment Thruster Treads Light Treads Leg Aluminum Leg Wheel Wheel Hover Unit Improved Linear Gravjet Flight Unit Xenon Bombardment Thruster Utility Hacking Suite Device Improved Cooling System Storage Small Storage Unit Processor Machine Analyzer Hackware Hacking Suite Weapon Chainsword Energy Gun Beam Rifle Ballistic Gun Heavy Assault Rifle Ballistic Cannon Enhanced Gauss Cannon Launcher Mini Grenade Launcher Special Weapon Advanced Remote Datajack Slashing Weapon Chainsword Piercing Weapon Spear Special Melee Weapon Datajack Build | -11 -10 -9 -9 -8 -7 -6 -5 -5 -4 -4 -3 -3 ------- Run | Yrd Mat Mat Min Mat Fac Fac Fac DSF Fac Ext Res Qua Slots Evolved 14 | . . 2 . 2 2 2 2 . 2 . 2 . Power 2 | . . . . 1 . . 1 . . . . . Propulsion 5 | . . 2 . . 1 1 . . . . 1 . Utility 5 | . . . . 1 1 . 1 . 1 . 1 . Weapon 2 | . . . . . . 1 . . 1 . . . Parts Attached 103 | 7 2 9 1 13 14 8 1 2 8 3 19 16 Power 18 | 2 . 2 . 4 4 1 . 1 . 1 2 1 Engine 11 | 2 . 2 . 3 3 . . . . . 1 . Core 5 | . . . . 1 1 1 . 1 . 1 . . Reactor 2 | . . . . . . . . . . . 1 1 Propulsion 36 | 2 . 3 1 6 5 3 . 1 2 . 8 5 Treads 5 | . . . . 5 . . . . . . . . Leg 6 | 2 . 2 . . . . . . . . 1 1 Wheel 4 | . . 1 1 1 . . . . . . 1 . Hover 5 | . . . . . . . . . . . 5 . Flight 16 | . . . . . 5 3 . 1 2 . 1 4 Utility 18 | 1 1 . . 1 2 . 1 . 2 1 6 3 Device 13 | . . . . 1 2 . . . 1 1 6 2 Storage 1 | 1 . . . . . . . . . . . . Processor 1 | . . . . . . . . . . . . 1 Hackware 3 | . 1 . . . . . 1 . 1 . . . Protection . | . . . . . . . . . . . . . Artifact . | . . . . . . . . . . . . . Weapon 31 | 2 1 4 . 2 3 4 . . 4 1 3 7 Energy Gun 10 | 1 1 2 . 1 . . . . 3 . 1 1 Energy Cannon . | . . . . . . . . . . . . . Ballistic Gun 9 | 1 . 2 . 1 1 . . . 1 . 1 2 Ballistic Cannon 1 | . . . . . . . . . . . . 1 Launcher 4 | . . . . . 1 2 . . . . . 1 Special Weapon 1 | . . . . . . . . . . . . 1 Impact Weapon . | . . . . . . . . . . . . . Slashing Weapon 2 | . . . . . 1 . . . . 1 . . Piercing Weapon 1 | . . . . . . . . . . . . 1 Special Melee Weapon 3 | . . . . . . 2 . . . . 1 . Unidentified Prototypes 9 | . . . . . 3 1 . . 2 . . 3 Parts Lost 50 | . . 1 . 2 1 1 . 1 3 8 12 21 Power 10 | . . . . . 1 . . . . 3 3 3 Propulsion 17 | . . 1 . 2 . 1 . 1 1 1 4 6 Utility 11 | . . . . . . . . . . 2 3 6 Weapon 12 | . . . . . . . . . 2 2 2 6 Highest Loss Streak 16 | . . 1 . 1 1 1 . 1 3 8 11 16 To Critical Strikes 3 | . . . . . . . . . . . 2 1 Average Slot Usage (%) 85 | . 90 87 100 98 97 97 94 95 87 73 74 49 Engine 8 | . 14 11 11 17 11 11 5 5 5 2 . . Core 2 | . . . . . 3 1 5 6 10 9 3 . Treads 3 | . . . . 22 3 . . . . . . . Leg 9 | . 28 31 33 7 . . . . . . . 1 Wheel 2 | . . 1 11 4 . . . . . . 1 2 Hover 1 | . . . . . . . . . . . 13 1 Flight 13 | . . . . . 32 39 35 35 24 21 11 8 Device 8 | . . . . 9 13 13 11 11 10 9 15 9 Storage 6 | . 14 11 11 9 7 6 5 5 5 4 . . Hackware 10 | . 4 11 11 9 7 6 11 11 15 15 14 12 Energy Gun 5 | . 14 11 11 9 4 . . . 1 . 1 3 Ballistic Gun 5 | . 14 11 11 8 4 . . . . . 3 1 Launcher 1 | . . . . . 2 6 5 5 3 . . . Slashing Weapon 1 | . . . . . 2 6 5 5 5 6 4 . Peak Build Rating 125 | 6 9 16 16 25 47 59 54 57 74 71 124 125 Average Rating 41 | 3 7 12 16 20 41 48 54 53 66 64 95 65 On Entrance 34 | . 6 9 16 16 25 44 51 54 57 64 52 60 Naked Turns . | . . . . . . . . . . . . . Heaviest Build 45 | 13 13 18 18 28 30 30 28 33 37 32 45 38 Greatest Support 83 | 20 20 33 33 83 83 36 36 36 38 32 53 45 Greatest Overweight (x) 4 | 2 . . 1 1 . . . . 1 1 2 4 Average Overweight (x) . | . . . . . . . . . . . . . Largest Inventory Capacity 8 | 8 8 8 8 8 8 8 8 8 8 8 5 5 Average Capacity 7 | 7 8 8 8 8 8 8 8 8 8 7 5 5 Most Carried 8 | 8 8 8 8 8 8 8 7 8 8 8 5 5 Average Carried 6 | 4 7 7 8 7 7 7 7 7 7 7 4 4 Final Capacity 8 | 8 8 8 8 8 8 8 8 8 8 5 5 5 Final Carried 8 | 6 8 8 8 8 8 8 7 8 8 5 5 4 Class Distribution -------------------- 28% | Scavenger-Mutant 27% | Hacker-Mutant 17% | Sprinter 16% | Mutant 7% | Hacker-Sprinter Dominant Class ---------------- Mutant | -10/Materials Scavenger-Mutant | -9/Materials Scavenger-Mutant | -9/Mines Scavenger-Mutant | -8/Materials Sprinter | -7/Factory Sprinter | -6/Factory Sprinter | -5/Factory Hacker-Sprinter | -5/DSF Hacker-Mutant | -4/Factory Hacker-Sprinter | -4/Extension Hacker-Mutant | -3/Research Hacker-Mutant | -3/Quarantine Resources | -11 -10 -9 -9 -8 -7 -6 -5 -5 -4 -4 -3 -3 ----------- Run | Yrd Mat Mat Min Mat Fac Fac Fac DSF Fac Ext Res Qua Matter Collected 978 | 212 60 85 . 242 90 35 . . 187 34 33 . Remotely 33 | . . . . . . . . . . . 33 . Salvage Created 797 | . 89 139 . 270 90 86 . . 90 . 33 . Parts 54 | . 9 10 . 21 5 5 . . 3 . 1 . Haulers Intercepted 1 | . . . . . . . . . . . . 1 Recyclers Shooed . | . . . . . . . . . . . . . Parts Field Recycled . | . . . . . . . . . . . . . Retrieved Matter . | . . . . . . . . . . . . . Parts Self-Destructed . | . . . . . . . . . . . . . Prevented . | . . . . . . . . . . . . . Kills | -11 -10 -9 -9 -8 -7 -6 -5 -5 -4 -4 -3 -3 ------- Run | Yrd Mat Mat Min Mat Fac Fac Fac DSF Fac Ext Res Qua Combat Hostiles Destroyed 23 | . 5 3 . 7 1 4 . . 1 . . 2 Melee 4 | . . . . . 1 2 . . 1 . . . Guns 15 | . 5 3 . 7 . . . . . . . . AOE 4 | . . . . . . 2 . . . . . 2 Classes Destroyed 7 | . 2 2 . 1 . . . . . . 1 1 Hauler 1 | . . . . . . . . . . . . 1 Operator 4 | . 1 . . . 1 1 . . . . . 1 Watcher 1 | . . . . . . . . . . . 1 . Swarmer 12 | . 5 . . 3 . 4 . . . . . . Grunt 3 | . . 1 . . . . . . . . . 2 Sentry 7 | . . 2 . 3 1 . . . 1 . . . Hunter 1 | . . . . 1 . . . . . . . . Best Kill Streak 5 | . 3 2 . 4 1 4 . . 1 . 1 5 Combat Bots Only 4 | . 2 2 . 4 1 4 . . 1 . . 2 Max Kills in Single Turn 5 | . 1 1 . 1 1 2 . . 1 . 1 5 Gunslinging . | . . . . . . . . . . . . . Exploded 2 | . . . . . . 2 . . . . . 2 Melee 1 | . . . . . 1 1 . . 1 . . . Uniques/NPCs Destroyed 1 | . . . . . . . . . . . . 1 Sigix Containment Pod (-3/Quarantine) Combat | -11 -10 -9 -9 -8 -7 -6 -5 -5 -4 -4 -3 -3 -------- Run | Yrd Mat Mat Min Mat Fac Fac Fac DSF Fac Ext Res Qua Hostile Shots Fired 548 | . 49 59 . 45 37 28 1 6 12 54 120 137 Missed 208 | . 16 20 . 14 21 14 1 2 4 26 53 37 Damage Taken 6828 | . 262 532 . 404 274 149 . 131 192 727 1067 3090 Core 1957 | . 80 66 . 106 69 12 . 74 . 240 142 1168 Absorbed by Shields 19 | . . . . . . . . 19 . . . . Core Remaining (%) 86 | 100 68 . 83 80 90 98 . 92 . 79 . . Volleys Fired 62 | . 18 14 . 19 3 1 . . 2 . 1 4 Largest 2 | . 2 2 . 2 2 1 . . 1 . 1 2 Hottest 94 | . 70 79 . 83 83 30 . . 55 . 94 78 Shots Fired 117 | . 36 28 . 38 6 1 . . 2 . 1 5 Gun 115 | . 36 28 . 38 6 . . . 2 . 1 4 Cannon . | . . . . . . . . . . . . . Launcher 2 | . . . . . . 1 . . . . . 1 Special . | . . . . . . . . . . . . . Kinetic 55 | . 18 14 . 19 3 . . . . . . 1 Thermal 49 | . 18 14 . 12 . . . . . . 1 4 Explosive 1 | . . . . . . 1 . . . . . . Electromagnetic 12 | . . . . 7 3 . . . 2 . . . Robot Hit Streak 7 | . 4 7 . 7 4 . . . 6 . . 7 Robot Miss Streak 5 | . 5 5 . 3 1 . . . . . . 1 Penetration Max . | . . . . . . . . . . . . . Secondary Targets 2 | . . 2 . . . . . . . . . . Max Gunslinging Chain 1 | . . 1 . . . . . . . . . . Shots Hit Robots 91 | . 14 15 . 26 8 5 . . 7 9 4 3 Core Hits 56 | . 8 9 . 13 4 10 . . 3 1 3 5 Critical Kills . | . . . . . . . . . . . . . Critical Parts Destroyed . | . . . . . . . . . . . . . Critical Strikes 8 | . 3 1 . 1 1 . . . 1 . 1 . Burn 5 | . 3 1 . 1 . . . . . . . . Sever 3 | . . . . . 1 . . . 1 . 1 . Melee Attacks 68 | . . . . . 22 12 1 . 7 11 13 2 Impact . | . . . . . . . . . . . . . Slashing 58 | . . . . . 22 12 1 . 7 3 13 . Piercing 2 | . . . . . . . . . . . . 2 Sneak Attacks 8 | . . . . . . . . . . 8 . . Combat Hostiles . | . . . . . . . . . . . . . Follow-up Attacks . | . . . . . . . . . . . . . Damage Inflicted 6092 | . 154 181 . 394 254 321 . . 220 33 193 4342 Guns 902 | . 154 181 . 394 87 . . . 35 . . 51 Cannons . | . . . . . . . . . . . . . Explosions 4388 | . . . . . . 97 . . . . . 4291 Melee 802 | . . . . . 167 224 . . 185 33 193 . Ramming . | . . . . . . . . . . . . . Kinetic 451 | . 53 78 . 256 38 . . . . . . 26 Thermal 4606 | . 101 103 . 86 . . . . . . . 4316 Explosive 97 | . . . . . . 97 . . . . . . Electromagnetic 136 | . . . . 52 49 . . . 35 . . . Impact . | . . . . . . . . . . . . . Slashing 802 | . . . . . 167 224 . . 185 33 193 . Piercing . | . . . . . . . . . . . . . Highest Corruption 18 | . . . . . 5 . . . . . . 18 Average Corruption 6 | . . . . . 5 . . . . . . 9 Corruption Purged . | . . . . . . . . . . . . . Corruption Blocked . | . . . . . . . . . . . . . Effects 9 | . . . . . 5 . . . . . . 4 Message Errors 4 | . . . . . 3 . . . . . . 1 Heat Flow Errors 2 | . . . . . 1 . . . . . . 1 Energy Discharges 1 | . . . . . 1 . . . . . . . Parts Rejected 2 | . . . . . . . . . . . . 2 Overload Shots . | . . . . . . . . . . . . . Overflow Damage 1311 | . . . . . . 60 . . . . 1 1250 Projectiles . | . . . . . . . . . . . . . Explosions 1250 | . . . . . . . . . . . . 1250 Melee 61 | . . . . . . 60 . . . . 1 . Knockbacks . | . . . . . . . . . . . . . Impact . | . . . . . . . . . . . . . Kinetic . | . . . . . . . . . . . . . Secondary . | . . . . . . . . . . . . . Self-Inflicted Damage 982 | . . . . . . 12 . . . . . 970 Shots 2 | . . . . . . 1 . . . . . 1 Rammed . | . . . . . . . . . . . . . Targets Rammed . | . . . . . . . . . . . . . Kicked . | . . . . . . . . . . . . . Crushed . | . . . . . . . . . . . . . Highest Temperature 337 | . 102 66 . 162 199 . . . 10 337 . 159 Average Temperature 57 | . 46 24 . 63 94 . . . 10 207 . 116 Received Heat Transfer 876 | . . 180 . 72 42 24 . . 27 450 63 18 Siege Activations . | . . . . . . . . . . . . . Robots Corrupted . | . . . . . . . . . . . . . Combat Hostiles . | . . . . . . . . . . . . . Parts Fried 1 | . . . . . 1 . . . . . . . Impact Corruptions . | . . . . . . . . . . . . . Robots Melted . | . . . . . . . . . . . . . Combat Hostiles . | . . . . . . . . . . . . . Parts Melted 4 | . 3 . . 1 . . . . . . . . Heat Transferred 1341 | . 518 370 . 296 . . . . . . . 157 Parts Sabotaged . | . . . . . . . . . . . . . Parts Stolen . | . . . . . . . . . . . . . Parts Stripped . | . . . . . . . . . . . . . Power Chain Reactions . | . . . . . . . . . . . . . Alert | -11 -10 -9 -9 -8 -7 -6 -5 -5 -4 -4 -3 -3 ------- Run | Yrd Mat Mat Min Mat Fac Fac Fac DSF Fac Ext Res Qua Peak Influence 984 | . 160 237 92 295 246 242 120 86 73 214 306 984 Initial 133 | . . 67 92 35 133 120 118 86 39 35 106 118 Average 164 | . 78 132 92 148 159 207 119 83 50 107 211 406 Maximum Alert Level 3 | . . 1 . 1 1 1 . . . 1 1 3 Low Security (%) 78 | 100 100 92 100 73 83 23 100 100 100 92 42 64 Level 1 17 | . . 7 . 26 16 76 . . . 7 57 . Level 2 . | . . . . . . . . . . . . . Level 3 4 | . . . . . . . . . . . . 35 Level 4 . | . . . . . . . . . . . . . Level 5 . | . . . . . . . . . . . . . High Security . | . . . . . . . . . . . . . Max Security . | . . . . . . . . . . . . . Squads Dispatched 8 | . . 2 . 1 1 . 1 . . 2 . 1 Investigation 4 | . . 1 . 1 . . . . . 1 . 1 Extermination . | . . . . . . . . . . . . . Reinforcement 4 | . . 1 . . 1 . 1 . . 1 . . Assault . | . . . . . . . . . . . . . Garrison . | . . . . . . . . . . . . . Intercept . | . . . . . . . . . . . . . Searches Triggered . | . . . . . . . . . . . . . Construction Impeded . | . . . . . . . . . . . . . Haulers Reinforced . | . . . . . . . . . . . . . Active Scanning Responses . | . . . . . . . . . . . . . Cargo Convoy Interrupts . | . . . . . . . . . . . . . Stealth | -11 -10 -9 -9 -8 -7 -6 -5 -5 -4 -4 -3 -3 --------- Run | Yrd Mat Mat Min Mat Fac Fac Fac DSF Fac Ext Res Qua Distress Signals 8 | . 1 . . . . 1 . . . 4 2 . Communications Jammed 28 | . . . . . . . . . . 2 26 . Distress Signals 28 | . . . . . . . . . . 2 26 . Times Spotted 87 | . 9 7 . 9 3 6 1 1 2 23 17 9 Peak Tracking Total 14 | . 4 5 . 5 1 4 2 1 1 14 10 8 Tactical Retreats 9 | . 1 1 . . . . . . . 3 4 . Traps | -11 -10 -9 -9 -8 -7 -6 -5 -5 -4 -4 -3 -3 ------- Run | Yrd Mat Mat Min Mat Fac Fac Fac DSF Fac Ext Res Qua Traps Triggered 6 | . . . . 1 2 . . 2 . 1 . . Indirectly . | . . . . . . . . . . . . . Trap Hack Attempts . | . . . . . . . . . . . . . Triggered . | . . . . . . . . . . . . . Disarmed . | . . . . . . . . . . . . . Reprogrammed 3 | . . . . . . . . . . 3 . . Reused 2 | . . . . . . . . . . 2 . . Traps Extracted . | . . . . . . . . . . . . . Installed . | . . . . . . . . . . . . . Triggered 2 | . . . . . . . . . . 2 . . Machines | -11 -10 -9 -9 -8 -7 -6 -5 -5 -4 -4 -3 -3 ---------- Run | Yrd Mat Mat Min Mat Fac Fac Fac DSF Fac Ext Res Qua Machines Disabled 16 | . . . . 1 . 1 . . . . . 14 Max in Single Turn 13 | . . . . 1 . 1 . . . . . 13 Machines Repaired . | . . . . . . . . . . . . . Machines Dismantled . | . . . . . . . . . . . . . Machines Sabotaged . | . . . . . . . . . . . . . Overloaded Fab Kills . | . . . . . . . . . . . . . Hacking | -11 -10 -9 -9 -8 -7 -6 -5 -5 -4 -4 -3 -3 --------- Run | Yrd Mat Mat Min Mat Fac Fac Fac DSF Fac Ext Res Qua Machines Accessed 23 | . 1 2 1 . 5 . 1 . 2 8 . 3 Terminals 19 | . 1 2 1 . 3 . 1 . 1 8 . 2 Fabricators 2 | . . . . . 1 . . . 1 . . . Repair Stations 1 | . . . . . . . . . . . . 1 Recycling Units 1 | . . . . . 1 . . . . . . . Scanalyzers . | . . . . . . . . . . . . . Garrison Access . | . . . . . . . . . . . . . Total Hacks 38 | . 2 3 2 . 6 . 2 . 2 15 . 6 Successful 17 | . . 1 2 . 2 . 1 . 1 7 . 3 Failed 21 | . 2 2 . . 4 . 1 . 1 8 . 3 Catastrophic 1 | . . 1 . . . . . . . . . . Database Lockouts . | . . . . . . . . . . . . . Manual 1 | . . 1 . . . . . . . . . . Terminals 32 | . 2 3 2 . 4 . 2 . 1 15 . 3 Fabricators 2 | . . . . . 1 . . . 1 . . . Repair Stations 3 | . . . . . . . . . . . . 3 Recycling Units 1 | . . . . . 1 . . . . . . . Scanalyzers . | . . . . . . . . . . . . . Garrison Access . | . . . . . . . . . . . . . Terminal Hacks 15 | . . 1 2 . 1 . 1 . 1 7 . 2 Record 4 | . . . 2 . . . . . . 1 . 1 Open Door 7 | . . . . . . . . . 1 5 . 1 Open DSF 2 | . . . . . 1 . 1 . . . . . Reprogram Traps 1 | . . . . . . . . . . 1 . . Recall Investigation 1 | . . 1 . . . . . . . . . . Fabricator Hacks 1 | . . . . . 1 . . . . . . . Network Status 1 | . . . . . 1 . . . . . . . Repair Station Hacks 1 | . . . . . . . . . . . . 1 Refit 1 | . . . . . . . . . . . . 1 Recycling Unit Hacks . | . . . . . . . . . . . . . Scanalyzer . | . . . . . . . . . . . . . Garrison Access Hacks . | . . . . . . . . . . . . . Unauthorized Hacks . | . . . . . . . . . . . . . Terminals . | . . . . . . . . . . . . . Fabricators . | . . . . . . . . . . . . . Repair Stations . | . . . . . . . . . . . . . Recycling Units . | . . . . . . . . . . . . . Scanalyzers . | . . . . . . . . . . . . . Garrison Access . | . . . . . . . . . . . . . Data Cores Recovered 3 | . 1 . . . 1 1 . . . . . . Used 1 | . . . . . 1 . . . . . . . Hacking Detections 14 | . 1 2 1 . 4 . . . 1 3 . 2 Full Trace Events 3 | . . 1 . . . . . . . 1 . 1 Feedback Events . | . . . . . . . . . . . . . Feedback Blocked . | . . . . . . . . . . . . . Robot Schematics Acquired . | . . . . . . . . . . . . . Robots Built . | . . . . . . . . . . . . . Authchips . | . . . . . . . . . . . . . Time . | . . . . . . . . . . . . . Total Robot Build Rating . | . . . . . . . . . . . . . Part Schematics Acquired . | . . . . . . . . . . . . . Parts Built . | . . . . . . . . . . . . . Authchips . | . . . . . . . . . . . . . Time . | . . . . . . . . . . . . . Total Part Build Rating . | . . . . . . . . . . . . . Parts Repaired . | . . . . . . . . . . . . . Time . | . . . . . . . . . . . . . Parts Recycled . | . . . . . . . . . . . . . Recycled Matter . | . . . . . . . . . . . . . Retrieved Matter . | . . . . . . . . . . . . . Retrieved Components . | . . . . . . . . . . . . . Parts Scanalyzed . | . . . . . . . . . . . . . Part Schematics Acquired . | . . . . . . . . . . . . . Parts Damaged . | . . . . . . . . . . . . . Bothacking | -11 -10 -9 -9 -8 -7 -6 -5 -5 -4 -4 -3 -3 ------------ Run | Yrd Mat Mat Min Mat Fac Fac Fac DSF Fac Ext Res Qua Used RIF Installer . | . . . . . . . . . . . . . Robots Hacked . | . . . . . . . . . . . . . Non-combat . | . . . . . . . . . . . . . Combat . | . . . . . . . . . . . . . Robot Hacks Applied . | . . . . . . . . . . . . . Relay Couplers Released . | . . . . . . . . . . . . . Fabnet Peak Effective % . | . . . . . . . . . . . . . Robots Rewired 7 | . . . . . . . . . . 7 . . Allies Hacked . | . . . . . . . . . . . . . Hacks Repelled . | . . . . . . . . . . . . . Allies | -11 -10 -9 -9 -8 -7 -6 -5 -5 -4 -4 -3 -3 -------- Run | Yrd Mat Mat Min Mat Fac Fac Fac DSF Fac Ext Res Qua Total Allies 13 | . . . . . . . . . . 13 . . Largest Group 6 | . . . . . . . . . . 6 . . Highest-Rated Group 270 | . . . . . . . . . . 270 . . Highest-Rated Ally 51 | . . . . . . . . . . 51 . . Total Orders . | . . . . . . . . . . . . . Ally Attacks 66 | . . . . . . . . . . 66 . . Total Damage 1878 | . . . . . . . . . . 1878 . . Kills 10 | . . . . . . . . . . 10 . . Allies Corrupted . | . . . . . . . . . . . . . Allies Melted . | . . . . . . . . . . . . . Intel | -11 -10 -9 -9 -8 -7 -6 -5 -5 -4 -4 -3 -3 ------- Run | Yrd Mat Mat Min Mat Fac Fac Fac DSF Fac Ext Res Qua Robot Analysis Total . | . . . . . . . . . . . . . Derelict Logs Recovered 1 | . . . 1 . . . . . . . . . Drone Launches . | . . . . . . . . . . . . . Drone Recoveries . | . . . . . . . . . . . . . Exploration | -11 -10 -9 -9 -8 -7 -6 -5 -5 -4 -4 -3 -3 ------------- Run | Yrd Mat Mat Min Mat Fac Fac Fac DSF Fac Ext Res Qua Turns Passed 2189 | 81 171 265 137 311 328 117 16 55 112 109 235 252 Spaces Moved 2893 | 49 96 161 127 148 637 269 50 117 248 209 426 356 Core 72 | 22 . . . . . . . . . . . 50 Treads 135 | . . . . 110 25 . . . . . . . Legs 369 | 27 96 161 38 38 . . . . . . . 9 Wheels 145 | . . . 89 . . . . . . . . 56 Hover 224 | . . . . . . . . . . . 203 21 Flight 1948 | . . . . . 612 269 50 117 248 209 223 220 Fastest Speed 23 | 50 120 120 95 120 27 23 24 23 23 29 35 38 Average Speed 53 | 126 120 120 102 153 32 23 24 23 27 29 39 58 Slowest Speed 250 | 150 120 120 120 190 160 27 24 27 105 107 195 250 Overloaded Moves . | . . . . . . . . . . . . . Propulsion Burnouts . | . . . . . . . . . . . . . Robots Hopped 8 | . . . . . 1 . . . . 6 . 1 Cave-ins Triggered . | . . . . . . . . . . . . . Exploration Rate (%) 25 | 5 27 30 33 20 17 8 2 86 10 41 15 37 Regions Visited 12 Branch Regions 3 Pre-discovered Areas 1 | . . . 1 . . . . . . . . . Known Exits Taken 1 | . . . . . . . 1 . . . . . Unknown Exits Taken 10 | 1 1 1 1 1 1 1 . . 1 1 1 . Scrap Searched . | . . . . . . . . . . . . . Spaces Dug 29 | . . . . . 16 6 1 . 2 . 4 . Terrain Destroyed 765 | . . . . . 16 8 1 . 2 . 4 734 Melee 29 | . . . . . 16 6 1 . 2 . 4 . Projectile . | . . . . . . . . . . . . . AOE 736 | . . . . . . 2 . . . . . 734 Terrain Rammed . | . . . . . . . . . . . . . Walls Destroyed . | . . . . . . . . . . . . . Machines Disabled . | . . . . . . . . . . . . . Actions | -11 -10 -9 -9 -8 -7 -6 -5 -5 -4 -4 -3 -3 --------- Run | Yrd Mat Mat Min Mat Fac Fac Fac DSF Fac Ext Res Qua Total 3331 | 68 119 211 133 197 721 302 51 144 286 241 469 389 Wait 76 | . . 17 4 . 25 5 . 18 . 6 1 . Move 2866 | 48 95 160 126 147 634 268 49 116 247 197 425 354 Hop 7 | . . . . . 1 . . . . 5 . 1 Pick Up 70 | 12 3 3 1 8 10 3 . 5 10 1 6 8 Fast Attach 28 | . 1 2 . 3 3 3 . . 2 1 6 7 Attach 44 | 6 . 1 . 4 4 3 1 2 3 2 11 7 Detach 4 | . . . . . . . . . . . 4 . Swap 31 | 1 1 6 1 6 7 2 . . 3 . 2 2 Drop 56 | 1 1 8 1 10 12 5 . 2 12 . . 4 Fire 62 | . 18 14 . 19 3 1 . . 2 . 1 4 Melee 68 | . . . . . 22 12 1 . 7 11 13 2 Ram . | . . . . . . . . . . . . . Kick . | . . . . . . . . . . . . . Crush . | . . . . . . . . . . . . . Escape Stasis 19 | . . . . . . . . 1 . 18 . . Rewire . | . . . . . . . . . . . . . Trap . | . . . . . . . . . . . . . Miscellaneous . | . . . . . . . . . . . . . Route ------- -11/Scrapyard -10/Materials -9/Materials (discovered 2 exits: *Min / [*Sto]) -9/Mines -8/Materials -7/Factory -6/Factory -5/Factory -5/DSF -4/Factory -4/Extension -3/Research -3/Quarantine History --------- Turn | Location | Event 2 | -11/Scrapyard | Discovered new exit (range 16) 82 | -11/Scrapyard | Entered Materials 230 | -10/Materials | Discovered new exit (range 13) 253 | -10/Materials | Entered another Materials area 253 | -9/Materials | Evolved 2 slots: Propulsion x2 275 | -9/Materials | Discovered new exit (range 16) 312 | -9/Materials | Build established: Mutant 471 | -9/Materials | Discovered new exit (range 12) 518 | -9/Materials | Entered Mines 542 | -9/Mines | Learned location of Zion (-6) 566 | -9/Mines | Received a Rocket Launcher from a helpful Derelict 629 | -9/Mines | Discovered new exit (range 10) 655 | -9/Mines | Entered Materials 655 | -8/Materials | Evolved 2 slots: Power x1, Utility x1 677 | -8/Materials | Build established: Scavenger-Mutant 902 | -8/Materials | Discovered new exit (range 13) 966 | -8/Materials | Entered Factory 966 | -7/Factory | Evolved 2 slots: Propulsion x1, Utility x1 1291 | -7/Factory | Discovered new exit (range 5) 1294 | -7/Factory | Entered another Factory area 1294 | -6/Factory | Evolved 2 slots: Propulsion x1, Weapon x1 1409 | -6/Factory | Discovered new exit (range 7) 1411 | -6/Factory | Entered another Factory area 1411 | -5/Factory | Evolved 2 slots: Power x1, Utility x1 1427 | -5/Factory | Identified exit to DSF 1427 | -5/Factory | Entered DSF 1473 | -5/DSF | Discovered new exit (range 15) 1482 | -5/DSF | Additional patrols routed to DSF 1482 | -5/DSF | Entered Factory 1482 | -4/Factory | Evolved 2 slots: Utility x1, Weapon x1 1591 | -4/Factory | Discovered new exit (range 10) 1594 | -4/Factory | Entered Extension 1598 | -4/Extension | Lost 3 parts (1n2w) 1630 | -4/Extension | Rescued a captive Derelict 1638 | -4/Extension | Rescued a captive Derelict 1658 | -4/Extension | Rescued a captive Derelict 1660 | -4/Extension | Rescued a captive Derelict 1686 | -4/Extension | Rescued a captive Derelict 1688 | -4/Extension | Rescued a captive Derelict 1695 | -4/Extension | Spotted B-86 Titan 1697 | -4/Extension | Spotted B-86 Titan 1702 | -4/Extension | Discovered new exit (range 3) 1703 | -4/Extension | Entered Research 1703 | -3/Research | Evolved 2 slots: Propulsion x1, Utility x1 1713 | -3/Research | Lost 8 allies 1734 | -3/Research | Lost 8 parts (3p1n2u2w) 1919 | -3/Research | Discovered new exit (range 15) 1938 | -3/Research | Entered Quarantine 1967 | -3/Quarantine | Lost 11 parts (3p3n3u2w) 2012 | -3/Quarantine | Build established: Hacker-Mutant 2088 | -3/Quarantine | Spotted Alpha 7 2098 | -3/Quarantine | Found Alien Launcher 2098 | -3/Quarantine | Identified Sigix Terminator 2100 | -3/Quarantine | Fired Sigix Terminator 2100 | -3/Quarantine | Destroyed Sigix Containment Pod 2101 | -3/Quarantine | Core integrity fell below 50% 2121 | -3/Quarantine | Core integrity fell below 20% 2128 | -3/Quarantine | System corruption reached 10% 2164 | -3/Quarantine | Lost 16 parts (1p5n6u4w) 2190 | -3/Quarantine | Destroyed by P-80 Master with Gamma Rifle Last Messages --------------- Backup Propulsion VII x2 Backup Laser VII x1 02156_ ALERT: Suspicious activity at Repair Station Q001. Dispatching Investigation squad. 02160_ K-01 Serf cleans the Cryopreservation Unit. 02162_ Cryopreservation Unit disabled. 02165_ K-01 Serf collects debris. 02167_ System corrupted: Backup Propulsion VII rejected. 02168_ Cryopreservation Unit disabled. 02168_ K-01 Serf cleans the Cryopreservation Unit. 02171_ Cryopreservation Unit disabled. 02176_ Backup Power VII destroyed. 02177_ Acquired Impulse Thruster Array. 02180_ Prc. Assault Rifle destroyed. 02181_ Backup Propulsion VII destroyed. 02184_ System corrupted: Heat flow error (+214). 02185_ Backup Power VII destroyed. 02185_ Backup Laser VII destroyed. 02188_ P-80 Master resets P-80 Master, system corruption cleaned. 02189_ Acquired Cmb. Antigrav System. Map ----- +----------------------------------------------------+ | ?## """ # """" ##???????????????? | | ?## "*" # ""R"" ##????? ###???????????????? | | ?## """ # "" "" ##????? ##????????????????? | | ?## "" + ##???? #?????????????????? | | ?## # ##????###?????????????????? | | ### # ##????###?????????????????? | | #####+###### ############## #????????? | | # ^ ????????? | | # ????????? | | # """ """ """ "" """ """ """ ""????????????? | | " # """ """ """ """ """ """ """???????????????? | | "" # """ """ """ """ """ "" """ """???????????? | | "" # ^ "????????? | | T # """ """ """ """ "" """ """ """???????????? | | "" # """ """ """ """ """ """ """ "?????????????? | | "" + """ """ """ """ """ """ """ """ "????????? | | " # ???????? | | # ???????? | | ####+### ##########/############??????????? | | ## # ####### g #?????????????????? | | ## # ##????#upp""" #?????????????????? | | ## #######????# """ #?????????????????? | | ## """ ##########?# """ #?????????????????? | | ## """ ############ p #?????????????????? | | ##+### """ + + !] #?????????????????? | | ## ### ############ @] #?????????????????? | | ## ### """ ##########?# !] #?????????????????? | | ## ### """ ##?????????# #?????????????????? | | ## ### """ ##?????????##########?????????????????? | | ## + ##????????????????????????????????????? | | ###### ##????????????????????????????????????? | | #############????????????????????????????????????? | | ????#########????????????????????????????????????? | | ?????????????????????????????????????????????????? | | ?????????????????????????????????????????????????? | | ?????????????????????????????????????????????????? | | ?????????????????????????????????????????????????? | | ?????????????????????????????????????????????????? | | ?????????????????????????????????????????????????? | | | | | | | | | | | | | | | | | | | | | | | +----------------------------------------------------+ Best States ------------- Heat Dissipation 136 Energy Generation 35 Energy Capacity 455 Matter Stores 300 Matter Capacity 300 Sight Range 16 Terrain Scan Density 10 Jamming Range 16 Cloak Strength 3 Additional Mass Support 9 Evasion (%) 65 Recoil Reduction 4 Offensive Hacking 20 Defensive Hacking 10 Item Schematics ----------------- None Robot Schematics ------------------ None Fabricated ------------ Nothing Alien Tech Used ----------------- Sigix Terminator Achievements -------------- Hard Hitter It Was An Accident, I Swear Challenges ------------ None Game ------ Seed AssaultLightpackAutobeam Manual? 0 Play Time 01:02:57 Cumulative 129.4 hours Start 2024.08.22 @ 13:47:44 End 2024.08.22 @ 15:26:36 Sessions 1 Manual Loads 0 Difficulty Rogue Special Mode None Game No. 179 Rogue 179 Adventurer 0 Explorer 0 Win Type - Total 0 Types 0/0/0/0/0/0/0/0/0 Lore% 31 Gallery% 58 Achievement% 39 Wizard Run 0 Options --------- Layout 0 ASCII 0 Keyboard 0 Movement Mouse Keybinds 0 Fullscreen 1 Font 24/Smallcaps Map View 76x50 Zoom Use 0% Tactical HUD 1 Map Filters NONE Filters NONE Steam 1 RUN: 2aa336c7-8a94-405a-8d7b-cc93d8579d57